fUST/lending_fUST_20240924
["ID","MTS","AMOUNT","RATE_DAILY","PERIOD"]
[339056988,1727183463972,-272.0,0.00030411,2]
[339056989,1727183463981,-624.0,0.00030411,2]
[339056990,1727183463990,-211.0,0.00030411,2]
[339056991,1727183464005,-250.0,0.00030421,5]
[339056992,1727183464015,-150.0,0.00030437,7]
[339056993,1727183464024,-150.0,0.00030465,7]
[339056994,1727183464034,-150.0,0.00030492,7]
[339056995,1727183464044,-150.37858642,0.0003052,7]
[339056996,1727183464053,-194.95271321,0.00030521,5]
[339056997,1727183464063,-457.75437292,0.00030521,5]
[339056998,1727183464072,-1000.0,0.00030521,5]
[339056999,1727183464081,-674.0789693,0.00030521,5]
[339057000,1727183464090,-1005.61499426,0.00030521,5]
[339057001,1727183464099,-1000.0,0.00030521,5]
[339057002,1727183464109,-418.0865874,0.00030645,2]
[339057003,1727183464118,-153.0,0.00030645,2]
[339057004,1727183464127,-209.0432937,0.00030645,2]
[339057005,1727183464136,-186.66097608,0.0003065,2]
[339057006,1727183464146,-150.0,0.00030673,5]
[339057007,1727183464155,-505.36137777,0.00030684,14]
[339057008,1727183464165,-497.67809373,0.00030684,14]
[339057009,1727183464174,-500.0,0.00030684,14]
[339057010,1727183464183,-506.6169734,0.00030684,14]
[339057011,1727183464192,-500.0,0.00030684,14]
[339057012,1727183464201,-524.92407597,0.00030684,14]
[339057013,1727183464210,-500.0,0.00030684,14]
[339057014,1727183464220,-500.0,0.00030684,14]
[339057015,1727183464229,-217.21301482,0.00030684,14]
[339057016,1727183464239,-500.0,0.00030684,14]
[339057017,1727183464254,-579.71,0.00030684,14]
[339057018,1727183464263,-507.83988969,0.00030684,14]
[339057019,1727183464273,-500.0,0.00030684,14]
[339057020,1727183464282,-500.0,0.00030684,14]
[339057021,1727183464291,-500.0,0.00030684,14]
[339057022,1727183464300,-546.72746024,0.00030684,14]
[339057023,1727183464310,-500.0,0.00030684,14]
[339057024,1727183464319,-500.0,0.00030684,14]
[339057025,1727183464328,-500.0,0.00030684,14]
[339057026,1727183464338,-500.0,0.00030684,14]
[339057027,1727183464348,-169.18019064,0.00030684,14]
[339057028,1727183464357,-267.18095433,0.00030684,14]
[339057029,1727183464367,-500.0,0.00030684,14]
[339057030,1727183464376,-500.0,0.00030684,14]
[339057031,1727183464385,-500.0,0.00030684,14]
[339057032,1727183464395,-500.0,0.00030684,14]
[339057033,1727183464405,-500.0,0.00030684,14]
[339057034,1727183464415,-500.0,0.00030684,14]
[339057035,1727183464425,-500.0,0.00030684,14]
[339057036,1727183464434,-500.0,0.00030684,14]
[339057037,1727183464444,-715.31,0.00030684,14]
[339057038,1727183464453,-716.92,0.00030684,14]
[339057039,1727183464463,-500.0,0.00030684,14]
[339057040,1727183464472,-550.2,0.00030684,14]
[339057041,1727183464482,-500.0,0.00030684,14]
[339057042,1727183464491,-500.0,0.00030684,14]
[339057043,1727183464503,-500.0,0.00030684,14]
[339057044,1727183464513,-182.28402854,0.00030684,14]
[339057045,1727183464522,-500.0,0.00030684,14]
[339057046,1727183464531,-500.0,0.00030684,14]
[339057047,1727183464541,-384.21076979,0.00030684,14]
[339057048,1727183464550,-506.60967249,0.00030684,14]
[339057049,1727183464563,-500.0,0.00030684,14]
[339057050,1727183464573,-500.0,0.00030684,14]
[339057051,1727183464582,-964.46,0.00030684,14]
[339057052,1727183464592,-500.0,0.00030684,14]
[339057053,1727183464602,-501.32,0.00030684,7]
[339057054,1727183464611,-500.0,0.00030684,14]
[339057055,1727183464621,-500.0,0.00030684,14]
[339057056,1727183464631,-500.0,0.00030684,14]
[339057057,1727183464640,-500.0,0.00030684,2]
[339057058,1727183464649,-427.99764992,0.00030684,14]
[339057059,1727183464658,-500.0,0.00030684,14]
[339057060,1727183464667,-500.0,0.00030684,14]
[339057061,1727183464676,-703.23,0.00030684,14]
[339057062,1727183464685,-1000.0,0.00030684,14]
[339057063,1727183464695,-500.0,0.00030684,14]
[339057064,1727183464704,-982.38,0.00030684,14]
[339057065,1727183464714,-500.0,0.00030684,14]
[339057066,1727183464723,-500.0,0.00030684,14]
[339057067,1727183464732,-500.0,0.00030684,14]
[339057068,1727183464741,-500.0,0.00030684,14]
[339057069,1727183464754,-500.0,0.00030684,14]
[339057070,1727183464763,-500.0,0.00030684,14]
[339057071,1727183464772,-500.0,0.00030684,14]
[339057072,1727183464781,-845.31,0.00030684,7]
[339057073,1727183464790,-500.0,0.00030684,14]
[339057074,1727183464800,-500.0,0.00030684,14]
[339057075,1727183464809,-500.0,0.00030684,14]
[339057076,1727183464818,-500.0,0.00030684,14]
[339057077,1727183464827,-690.5,0.00030684,14]
[339057078,1727183464836,-500.0,0.00030684,14]
[339057079,1727183464846,-1040.87,0.00030684,14]
[339057080,1727183464855,-500.0,0.00030684,14]
[339057081,1727183464864,-550.98,0.00030684,14]
[339057082,1727183464874,-771.06,0.00030684,14]
[339057083,1727183464883,-500.0,0.00030684,14]
[339057084,1727183464892,-500.0,0.00030684,14]
[339057085,1727183465004,-500.0,0.00030684,14]
[339057086,1727183465019,-874.58,0.00030684,2]
[339057087,1727183465029,-500.0,0.00030684,14]
[339057088,1727183465038,-983.4,0.00030684,14]
[339057089,1727183465047,-582.74,0.00030684,14]
[339057090,1727183465057,-500.0,0.00030684,14]
[339057091,1727183465066,-500.0,0.00030684,14]
[339057092,1727183465075,-500.0,0.00030684,14]
[339057093,1727183465084,-500.0,0.00030684,2]
[339057094,1727183465093,-560.85,0.00030684,14]
[339057095,1727183465102,-501.67791795,0.00030684,14]
[339057096,1727183465111,-500.0,0.00030684,14]
[339057097,1727183465120,-166.80335903,0.00030684,14]
[339057098,1727183465129,-500.0,0.00030684,14]
[339057099,1727183465138,-500.0,0.00030684,14]
[339057100,1727183465147,-1774.29,0.00030684,14]
[339057101,1727183465156,-500.0,0.00030684,14]
[339057102,1727183465166,-500.0,0.00030684,14]
[339057103,1727183465175,-685.04,0.00030684,14]
[339057104,1727183465184,-500.0,0.00030684,120]
[339057105,1727183465193,-500.0,0.00030684,14]
[339057106,1727183465202,-500.0,0.00030684,14]
[339057107,1727183465212,-500.0,0.00030684,14]
[339057108,1727183465221,-500.0,0.00030684,14]
[339057109,1727183465231,-521.76,0.00030684,14]
[339057110,1727183465240,-500.0,0.00030684,14]
[339057111,1727183465250,-500.0,0.00030684,14]
[339057112,1727183465260,-500.0,0.00030684,14]
[339057113,1727183465269,-866.81,0.00030684,14]
[339057114,1727183465279,-500.0,0.00030684,14]
[339057115,1727183465288,-500.0,0.00030684,14]
[339057116,1727183465298,-500.0,0.00030684,14]
[339057117,1727183465307,-1075.54,0.00030684,14]
[339057118,1727183465316,-500.0,0.00030684,14]
[339057119,1727183465325,-500.0,0.00030684,14]
[339057120,1727183465335,-500.0,0.00030684,14]
[339057121,1727183465343,-500.0,0.00030684,14]
[339057122,1727183465353,-738.16,0.00030684,7]
[339057123,1727183465362,-971.28,0.00030684,14]
[339057124,1727183465371,-1097.6,0.00030684,14]
[339057125,1727183465380,-1613.37,0.00030684,14]
[339057126,1727183465390,-500.0,0.00030684,14]
[339057127,1727183465399,-500.0,0.00030684,14]
[339057128,1727183465409,-565.12,0.00030684,14]
[339057129,1727183465420,-500.0,0.00030684,14]
[339057130,1727183465431,-500.0,0.00030684,14]
[339057131,1727183465442,-664.73,0.00030684,14]
[339057132,1727183465452,-500.0,0.00030684,14]
[339057133,1727183465462,-500.0,0.00030684,14]
[339057134,1727183465473,-500.0,0.00030684,14]
[339057135,1727183465482,-931.14,0.00030684,14]
[339057136,1727183465492,-1600.34,0.00030684,14]
[339057137,1727183465502,-815.6,0.00030684,14]
[339057138,1727183465511,-500.0,0.00030684,14]
[339057139,1727183465520,-551.85360013,0.00030684,14]
[339057140,1727183465529,-1015.01,0.00030684,14]
[339057141,1727183465538,-500.0,0.00030684,14]
[339057142,1727183465548,-585.33406723,0.00030684,14]
[339057143,1727183465560,-500.0,0.00030684,14]
[339057144,1727183465571,-814.57,0.00030684,14]
[339057145,1727183465580,-547.35,0.00030684,14]
[339057146,1727183465589,-500.0,0.00030684,14]
[339057147,1727183465599,-500.0,0.00030684,14]
[339057148,1727183465608,-500.0,0.00030684,14]
[339057149,1727183465618,-500.0,0.00030684,14]
[339057150,1727183465628,-269.51,0.00030684,7]
[339057151,1727183465639,-500.0,0.00030684,14]
[339057152,1727183465648,-566.53,0.00030684,14]
[339057153,1727183465657,-593.08,0.00030684,14]
[339057154,1727183465666,-500.0,0.00030684,14]
[339057155,1727183465676,-1023.49,0.00030684,14]
[339057156,1727183465687,-500.0,0.00030684,14]
[339057157,1727183465697,-843.22,0.00030684,14]
[339057158,1727183465707,-890.05,0.00030684,14]
[339057159,1727183465716,-1314.69,0.00030684,14]
[339057160,1727183465725,-503.88593281,0.00030684,14]
[339057161,1727183465735,-500.0,0.00030684,14]
[339057162,1727183465745,-500.0,0.00030684,14]
[339057163,1727183465754,-921.47,0.00030684,14]
[339057164,1727183465763,-500.0,0.00030684,14]
[339057165,1727183465773,-500.0,0.00030684,14]
[339057166,1727183465782,-170.89439688,0.00030684,14]
[339057167,1727183465791,-633.78,0.00030684,14]
[339057168,1727183465800,-500.0,0.00030684,14]
[339057169,1727183465808,-500.0,0.00030684,14]
[339057170,1727183465817,-500.0,0.00030684,14]
[339057171,1727183465826,-500.0,0.00030684,14]
[339057172,1727183465835,-500.0,0.00030684,14]
[339057173,1727183465844,-855.94,0.00030684,2]
[339057174,1727183465853,-500.0,0.00030684,14]
[339057175,1727183465863,-715.92,0.00030684,14]
[339057176,1727183465872,-1180.58,0.00030684,14]
[339057177,1727183465881,-772.86,0.00030684,14]
[339057178,1727183465890,-500.0,0.00030684,14]
[339057179,1727183465899,-500.0,0.00030684,14]
[339057180,1727183465908,-500.0,0.00030684,14]
[339057181,1727183465918,-500.0,0.00030684,14]
[339057182,1727183465927,-500.0,0.00030684,14]
[339057183,1727183465935,-500.0,0.00030684,14]
[339057184,1727183465946,-500.0,0.00030684,14]
[339057185,1727183465954,-500.0,0.00030684,14]
[339057186,1727183465963,-500.0,0.00030684,14]
[339057187,1727183465973,-500.0,0.00030684,14]
[339057188,1727183465985,-500.0,0.00030684,14]
[339057189,1727183465996,-1008.64,0.00030684,14]
[339057190,1727183466007,-500.0,0.00030684,14]
[339057191,1727183466017,-500.0,0.00030684,14]
[339057192,1727183466030,-737.29,0.00030684,14]
[339057193,1727183466042,-500.0,0.00030684,14]
[339057194,1727183466052,-1153.19,0.00030684,14]
[339057195,1727183466063,-500.0,0.00030684,14]
[339057196,1727183466072,-500.0,0.00030684,14]
[339057197,1727183466082,-576.82763715,0.00030684,14]
[339057198,1727183466091,-560.6,0.00030684,14]
[339057199,1727183466100,-500.0,0.00030684,14]
[339057200,1727183466110,-500.0,0.00030684,14]
[339057201,1727183466120,-500.0,0.00030684,14]
[339057202,1727183466129,-500.0,0.00030684,14]
[339057203,1727183466139,-500.0,0.00030684,14]
[339057204,1727183466148,-500.0,0.00030684,14]
[339057205,1727183466157,-500.0,0.00030684,14]
[339057206,1727183466167,-500.0,0.00030684,14]
[339057207,1727183466177,-500.0,0.00030684,14]
[339057208,1727183466187,-500.0,0.00030684,14]
[339057209,1727183466197,-500.0,0.00030684,14]
[339057210,1727183466206,-500.0,0.00030684,14]
[339057211,1727183466215,-501.55,0.00030684,14]
[339057212,1727183466225,-775.8,0.00030684,14]
[339057213,1727183466234,-500.0,0.00030684,14]
[339057214,1727183466245,-500.0,0.00030684,14]
[339057215,1727183466254,-500.0,0.00030684,14]
[339057216,1727183466263,-307.49,0.00030684,14]
[339057217,1727183466273,-500.0,0.00030684,14]
[339057218,1727183466283,-500.0,0.00030684,14]
[339057219,1727183466292,-500.0,0.00030684,7]
[339057220,1727183466301,-500.0,0.00030684,14]
[339057221,1727183466311,-500.0,0.00030684,14]
[339057222,1727183466320,-500.0,0.00030684,14]
[339057223,1727183466330,-986.37,0.00030684,14]
[339057224,1727183466340,-503.93053373,0.00030684,14]
[339057225,1727183466350,-500.0,0.00030684,14]
[339057226,1727183466360,-500.0,0.00030684,14]
[339057227,1727183466370,-500.0,0.00030684,14]
[339057228,1727183466380,-500.0,0.00030684,14]
[339057229,1727183466390,-603.40387401,0.00030684,14]
[339057230,1727183466399,-500.0,0.00030684,14]
[339057231,1727183466409,-500.0,0.00030684,14]
[339057232,1727183466419,-500.0,0.00030684,14]
[339057233,1727183466429,-500.0,0.00030684,14]
[339057234,1727183466439,-415.42,0.00030684,14]
[339057235,1727183466449,-500.0,0.00030684,14]
[339057236,1727183466458,-500.0,0.00030684,14]
[339057237,1727183466469,-599.57,0.00030684,14]
[339057238,1727183466483,-500.0,0.00030684,14]
[339057239,1727183466493,-500.0,0.00030684,14]
[339057240,1727183466503,-624.3,0.00030684,14]
[339057241,1727183466513,-500.0,0.00030684,14]
[339057242,1727183466523,-500.0,0.00030684,14]
[339057243,1727183466533,-674.45,0.00030684,14]
[339057244,1727183466542,-500.0,0.00030684,14]
[339057245,1727183466553,-500.0,0.00030684,14]
[339057246,1727183466564,-500.0,0.00030684,14]
[339057247,1727183466574,-500.0,0.00030684,14]
[339057248,1727183466583,-500.0,0.00030684,14]
[339057249,1727183466593,-500.0,0.00030684,14]
[339057250,1727183466602,-500.0,0.00030684,14]
[339057251,1727183466612,-500.0,0.00030684,14]
[339057252,1727183466621,-500.0,0.00030684,14]
[339057253,1727183466631,-500.0,0.00030684,14]
[339057254,1727183466641,-500.0,0.00030684,14]
[339057255,1727183466650,-500.0,0.00030684,14]
[339057256,1727183466659,-500.0,0.00030684,14]
[339057257,1727183466669,-626.57,0.00030684,14]
[339057258,1727183466678,-500.0,0.00030684,14]
[339057259,1727183466688,-681.67,0.00030684,14]
[339057260,1727183466697,-500.0,0.00030684,14]
[339057261,1727183466707,-535.52,0.00030684,14]
[339057262,1727183466716,-500.0,0.00030684,14]
[339057263,1727183466725,-500.0,0.00030684,14]
[339057264,1727183466734,-632.08364113,0.00030684,14]
[339057265,1727183466745,-500.0,0.00030684,14]
[339057266,1727183466756,-500.0,0.00030684,14]
[339057267,1727183466767,-500.0,0.00030684,14]
[339057268,1727183466777,-873.25,0.00030684,14]
[339057269,1727183466788,-500.0,0.00030684,14]
[339057270,1727183466798,-1089.71,0.00030684,14]
[339057271,1727183466809,-792.01,0.00030684,14]
[339057272,1727183466820,-500.0,0.00030684,14]
[339057273,1727183466830,-511.42,0.00030684,14]
[339057274,1727183466840,-500.0,0.00030684,14]
[339057275,1727183466851,-500.0,0.00030684,14]
[339057276,1727183466861,-500.0,0.00030684,14]
[339057277,1727183466870,-500.0,0.00030684,14]
[339057278,1727183466881,-500.0,0.00030684,14]
[339057279,1727183466891,-500.0,0.00030684,14]
[339057280,1727183466900,-627.86952505,0.00030684,14]
[339057281,1727183466909,-500.0,0.00030684,14]
[339057282,1727183466918,-500.0,0.00030684,14]
[339057283,1727183466927,-185.0238154,0.00030684,14]
[339057284,1727183466937,-500.0,0.00030684,14]
[339057285,1727183466946,-500.0,0.00030684,14]
[339057286,1727183466955,-500.0,0.00030684,14]
[339057287,1727183466965,-500.0,0.00030684,14]
[339057288,1727183466974,-500.0,0.00030684,14]
[339057289,1727183466982,-500.0,0.00030684,14]
[339057290,1727183466995,-462.21674349,0.00030684,14]
[339057291,1727183467005,-500.0,0.00030684,14]
[339057292,1727183467017,-500.0,0.00030684,14]
[339057293,1727183467026,-304.94541536,0.00030684,14]
[339057294,1727183467037,-500.0,0.00030684,14]
[339057295,1727183467048,-500.0,0.00030684,14]
[339057296,1727183467058,-500.0,0.00030684,14]
[339057297,1727183467069,-500.0,0.00030684,14]
[339057298,1727183467078,-500.0,0.00030684,14]
[339057299,1727183467088,-720.06,0.00030684,14]
[339057300,1727183467098,-500.0,0.00030684,14]
[339057301,1727183467108,-641.27617818,0.00030684,14]
[339057302,1727183467118,-500.0,0.00030684,14]
[339057303,1727183467127,-500.0,0.00030684,14]
[339057304,1727183467137,-760.61,0.00030684,14]
[339057305,1727183467147,-500.0,0.00030684,14]
[339057306,1727183467158,-1134.27,0.00030684,14]
[339057307,1727183467168,-506.02266922,0.00030684,14]
[339057308,1727183467177,-500.0,0.00030684,14]
[339057309,1727183467187,-500.0,0.00030684,14]
[339057310,1727183467196,-500.0,0.00030684,14]
[339057311,1727183467205,-500.0,0.00030684,14]
[339057312,1727183467215,-500.0,0.00030684,14]
[339057313,1727183467225,-500.0,0.00030684,14]
[339057314,1727183467235,-500.0,0.00030684,14]
[339057315,1727183467246,-500.0,0.00030684,14]
[339057316,1727183467256,-500.0,0.00030684,14]
[339057317,1727183467266,-510.83534632,0.00030684,14]
[339057318,1727183467275,-500.0,0.00030684,14]
[339057319,1727183467448,-500.0,0.00030684,14]
[339057320,1727183467459,-500.0,0.00030684,14]
[339057321,1727183467469,-500.0,0.00030684,14]
[339057322,1727183467479,-500.0,0.00030684,14]
[339057323,1727183467488,-632.13438659,0.00030684,14]
[339057324,1727183467500,-500.0,0.00030684,14]
[339057325,1727183467514,-1230.54,0.00030684,14]
[339057326,1727183467524,-3825.82,0.00030684,14]
[339057327,1727183467534,-511.23,0.00030684,14]
[339057328,1727183467544,-500.0,0.00030684,14]
[339057329,1727183467554,-271.62506673,0.00030684,14]
[339057330,1727183467566,-500.0,0.00030684,14]
[339057331,1727183467576,-572.62,0.00030684,14]
[339057332,1727183467586,-500.0,0.00030684,14]
[339057333,1727183467596,-500.0,0.00030684,14]
[339057334,1727183467606,-500.0,0.00030684,14]
[339057335,1727183467616,-500.0,0.00030684,14]
[339057336,1727183467626,-500.0,0.00030684,14]
[339057337,1727183467636,-500.0,0.00030684,14]
[339057338,1727183467645,-500.0,0.00030684,14]
[339057339,1727183467655,-1023.23,0.00030684,14]
[339057340,1727183467664,-500.0,0.00030684,14]
[339057341,1727183467673,-500.0,0.00030684,14]
[339057342,1727183467682,-500.0,0.00030684,14]
[339057343,1727183467692,-500.0,0.00030684,14]
[339057344,1727183467702,-293.76550328,0.00030684,14]
[339057345,1727183467712,-500.0,0.00030684,14]
[339057346,1727183467721,-500.0,0.00030684,14]
[339057347,1727183467731,-777.7,0.00030684,14]
[339057348,1727183467742,-1020.85,0.00030684,14]
[339057349,1727183467754,-500.0,0.00030684,14]
[339057350,1727183467764,-500.0,0.00030684,14]
[339057351,1727183467774,-452.69454151,0.00030684,14]
[339057352,1727183467783,-500.0,0.00030684,14]
[339057353,1727183467795,-578.99,0.00030684,14]
[339057354,1727183467806,-500.0,0.00030684,14]
[339057355,1727183467817,-500.0,0.00030684,14]
[339057356,1727183467828,-502.1522072,0.00030684,14]
[339057357,1727183467838,-404.84059177,0.00030684,14]
[339057358,1727183467849,-500.0,0.00030684,10]
[339057359,1727183467859,-500.0,0.00030684,14]
[339057360,1727183467869,-500.0,0.00030684,14]
[339057361,1727183467878,-500.0,0.00030684,14]
[339057362,1727183467887,-500.0,0.00030684,14]
[339057363,1727183467897,-500.0,0.00030684,14]
[339057364,1727183467906,-653.58,0.00030684,14]
[339057365,1727183467915,-1836.8,0.00030684,14]
[339057366,1727183467925,-500.0,0.00030684,14]
[339057367,1727183467935,-500.0,0.00030684,14]
[339057368,1727183467945,-500.0,0.00030684,14]
[339057369,1727183467955,-747.94,0.00030684,14]
[339057370,1727183467965,-500.0,0.00030684,14]
[339057371,1727183467975,-500.0,0.00030684,14]
[339057372,1727183467984,-500.0,0.00030684,14]
[339057373,1727183467996,-583.30459436,0.00030684,14]
[339057374,1727183468006,-529.65646299,0.00030684,14]
[339057375,1727183468016,-500.0,0.00030684,14]
[339057376,1727183468027,-500.0,0.00030684,14]
[339057377,1727183468038,-500.0,0.00030684,14]
[339057378,1727183468050,-911.32,0.00030684,14]
[339057379,1727183468060,-500.0,0.00030684,14]
[339057380,1727183468070,-500.0,0.00030684,14]
[339057381,1727183468079,-500.0,0.00030684,14]
[339057382,1727183468088,-500.44,0.00030684,14]
[339057383,1727183468098,-498.52591958,0.00030684,14]
[339057384,1727183468108,-627.49,0.00030684,14]
[339057385,1727183468118,-500.0,0.00030684,14]
[339057386,1727183468128,-277.43,0.00030684,14]
[339057387,1727183468139,-937.49,0.00030684,14]
[339057388,1727183468149,-500.0,0.00030684,14]
[339057389,1727183468159,-500.0,0.00030684,14]
[339057390,1727183468170,-500.0,0.00030684,14]
[339057391,1727183468180,-500.0,0.00030684,2]
[339057392,1727183468189,-500.0,0.00030684,14]
[339057393,1727183468199,-511.44930889,0.00030684,14]
[339057394,1727183468208,-500.0,0.00030684,14]
[339057395,1727183468220,-500.0,0.00030684,14]
[339057396,1727183468232,-500.0,0.00030684,14]
[339057397,1727183468243,-500.0,0.00030684,14]
[339057398,1727183468256,-666.54,0.00030684,14]
[339057399,1727183468266,-500.0,0.00030684,14]
[339057400,1727183468275,-592.18,0.00030684,14]
[339057401,1727183468284,-500.0,0.00030684,14]
[339057402,1727183468294,-500.0,0.00030684,14]
[339057403,1727183468304,-2217.97,0.00030684,14]
[339057404,1727183468313,-770.23,0.00030684,14]
[339057405,1727183468323,-500.0,0.00030684,14]
[339057406,1727183468333,-500.0,0.00030684,5]
[339057407,1727183468343,-500.0,0.00030684,14]
[339057408,1727183468354,-839.15,0.00030684,14]
[339057409,1727183468363,-2095.3,0.00030684,14]
[339057410,1727183468372,-500.0,0.00030684,14]
[339057411,1727183468382,-500.0,0.00030684,14]
[339057412,1727183468392,-500.0,0.00030684,14]
[339057413,1727183468401,-500.0,0.00030684,14]
[339057414,1727183468411,-500.0,0.00030684,14]
[339057415,1727183468420,-500.0,0.00030684,14]
[339057416,1727183468430,-500.0,0.00030684,14]
[339057417,1727183468440,-500.0,0.00030684,14]
[339057418,1727183468450,-507.20390431,0.00030684,14]
[339057419,1727183468461,-500.0,0.00030684,14]
[339057420,1727183468471,-500.0,0.00030684,14]
[339057421,1727183468480,-500.0,0.00030684,14]
[339057422,1727183468490,-708.22,0.00030684,14]
[339057423,1727183468500,-288.25244433,0.00030684,2]
[339057424,1727183468510,-500.0,0.00030684,14]
[339057425,1727183468520,-564.99210498,0.00030684,14]
[339057426,1727183468530,-533.76219512,0.00030684,14]
[339057427,1727183468539,-500.0,0.00030684,14]
[339057428,1727183468548,-500.0,0.00030684,14]
[339057429,1727183468558,-533.51944095,0.00030684,14]
[339057430,1727183468569,-500.0,0.00030684,14]
[339057431,1727183468579,-936.09,0.00030684,14]
[339057432,1727183468588,-506.97,0.00030684,14]
[339057433,1727183468598,-500.0,0.00030684,14]
[339057434,1727183468608,-500.0,0.00030684,14]
[339057435,1727183468617,-422.16787843,0.00030684,14]
[339057436,1727183468627,-500.0,0.00030684,2]
[339057437,1727183468637,-500.0,0.00030684,14]
[339057438,1727183468647,-567.59,0.00030684,14]
[339057439,1727183468656,-507.23543901,0.00030684,14]
[339057440,1727183468665,-547.9642561,0.00030684,14]
[339057441,1727183468675,-500.0,0.00030684,14]
[339057442,1727183468684,-624.0,0.00030685,2]
[339057443,1727183468694,-330.0,0.000307,120]
[339057444,1727183468703,-796.94,0.00030721,5]
[339057445,1727183468712,-763.41768787,0.00030721,5]
[339057446,1727183468722,-470.2,0.00030782,5]
[339057447,1727183468731,-1787.53919954,0.00030806,2]
[339057448,1727183468741,-4000.0,0.00030933,3]
[339057449,1727183468752,-170.15,0.00030934,2]
[339057450,1727183468761,-150.288,0.00030934,2]
[339057451,1727183468771,-152.977,0.00030934,2]
[339057452,1727183468781,-150.0,0.00030935,2]
[339057453,1727183468791,-251.131,0.00030935,2]
[339057454,1727183468800,-525.0,0.00030935,2]
[339057455,1727183468810,-154.334,0.00030935,2]
[339057456,1727183468819,-1225.759,0.00030935,2]
[339057457,1727183468830,-500.0,0.00030958,14]
[339057458,1727183468842,-500.0,0.00030958,14]
[339057459,1727183468852,-500.0,0.00030958,14]
[339057460,1727183468863,-557.84941157,0.00030958,14]
[339057461,1727183468872,-500.0,0.00030958,14]
[339057462,1727183468882,-579.71,0.00030958,14]
[339057463,1727183468892,-500.0,0.00030958,14]
[339057464,1727183468902,-500.0,0.00030958,14]
[339057465,1727183468912,-500.0,0.00030958,14]
[339057466,1727183468921,-500.0,0.00030958,14]
[339057467,1727183468931,-515.43748676,0.00030958,14]
[339057468,1727183468941,-500.0,0.00030958,14]
[339057469,1727183468951,-500.0,0.00030958,14]
[339057470,1727183468961,-500.0,0.00030958,14]
[339057471,1727183468970,-500.0,0.00030958,14]
[339057472,1727183468980,-500.0,0.00030958,14]
[339057473,1727183468990,-500.0,0.00030958,14]
[339057474,1727183469000,-500.0,0.00030958,14]
[339057475,1727183469010,-500.0,0.00030958,14]
[339057476,1727183469020,-332.97579615,0.00030958,14]
[339057477,1727183469029,-715.31,0.00030958,14]
[339057478,1727183469039,-716.92,0.00030958,14]
[339057479,1727183469049,-500.0,0.00030958,14]
[339057480,1727183469060,-550.2,0.00030958,14]
[339057481,1727183469069,-457.4397474,0.00030958,14]
[339057482,1727183469078,-500.0,0.00030958,14]
[339057483,1727183469089,-500.0,0.00030958,14]
[339057484,1727183469098,-500.0,0.00030958,14]
[339057485,1727183469108,-500.0,0.00030958,14]
[339057486,1727183469118,-500.0,0.00030958,14]
[339057487,1727183469127,-964.46,0.00030958,14]